bitfinex/quotes_BTCUSD_20240902
["timestamp","ask_amount","ask_price","bid_price","bid_amount"]
[1725254541473,0.25533742,57821.0,57820.0,0.0866987]
[1725254541712,0.33334501,57821.0,57820.0,0.0866987]
[1725254542454,0.08627738,57821.0,57820.0,0.18697587]
[1725254542717,0.03427342,57821.0,57820.0,0.2872637]
[1725254542954,0.00713005,57821.0,57820.0,0.2872637]
[1725254543210,0.00713005,57821.0,57820.0,0.5293937]
[1725254544379,0.00713005,57821.0,57820.0,0.1661987]
[1725254544639,0.00713005,57821.0,57820.0,0.2872637]
[1725254544868,0.05913128,57821.0,57820.0,0.2872637]
[1725254545105,0.2061949,57821.0,57820.0,0.0248987]
[1725254545330,0.37031905,57821.0,57820.0,0.0248987]
[1725254545561,0.47432152,57821.0,57820.0,0.0248987]
[1725254546242,0.37031905,57821.0,57820.0,0.0248987]
[1725254546939,0.37031905,57821.0,57820.0,0.0906987]
[1725254547236,0.08513485,57821.0,57820.0,0.10770857]
[1725254547450,0.00713005,57821.0,57820.0,0.18710857]
[1725254547694,0.00713005,57821.0,57820.0,0.2911637]
[1725254549384,0.00713005,57821.0,57820.0,0.5332937]
[1725254558569,0.00713005,57821.0,57820.0,0.2911637]
[1725254559468,0.69678803,57821.0,57820.0,0.0208987]
[1725254559704,1.55148947,57821.0,57820.0,0.0208987]
[1725254559922,1.15621105,57821.0,57820.0,0.0208987]
[1725254560236,1.06801403,57821.0,57820.0,0.0208987]
[1725254560447,1.05041403,57821.0,57820.0,0.0128987]
[1725254560903,1.05041403,57821.0,57820.0,0.0188987]
[1725254561128,1.05041403,57821.0,57820.0,0.0228987]
[1725254561129,0.84236133,57821.0,57820.0,0.0228987]
[1725254561349,0.92670431,57821.0,57820.0,0.0228987]
[1725254561575,0.90071598,57821.0,57820.0,0.0108987]
[1725254561830,0.9007171,57821.0,57820.0,0.0148987]
[1725254562542,0.9007171,57821.0,57820.0,0.0048987]
[1725254562783,0.79678803,57821.0,57820.0,0.0048987]
[1725254563000,0.9007171,57821.0,57820.0,0.0048987]
[1725254563223,0.9007171,57821.0,57820.0,0.0098987]
[1725254563667,0.79678803,57821.0,57820.0,0.0088987]
[1725254563907,0.79678803,57821.0,57820.0,0.0118987]
[1725254564514,0.87472856,57821.0,57820.0,0.0048987]
[1725254564734,0.9007171,57821.0,57820.0,0.0148987]
[1725254565217,0.9007171,57821.0,57820.0,0.0078987]
[1725254565428,0.79678803,57821.0,57820.0,0.0148987]
[1725254566104,0.9007171,57821.0,57820.0,0.0148987]
[1725254566330,0.79678803,57821.0,57820.0,0.0148987]
[1725254566989,0.9007171,57821.0,57820.0,0.0148987]
[1725254567445,0.79678803,57821.0,57820.0,0.0148987]
[1725254568070,0.9007171,57821.0,57820.0,0.0148987]
[1725254568247,0.9007171,57821.0,57820.0,0.0108987]
[1725254568469,0.90070606,57821.0,57820.0,0.0148987]
[1725254569755,0.95114603,57821.0,57820.0,0.0108987]
[1725254569977,1.08105943,57821.0,57820.0,0.0108987]
[1725254570252,1.19327203,57821.0,57820.0,0.0108987]
[1725254570478,1.32316225,57821.0,57820.0,0.0108987]
[1725254570958,0.93817825,57821.0,57820.0,0.0108987]
[1725254571195,0.90069623,57821.0,57820.0,0.0108987]
[1725254572305,0.79678803,57821.0,57820.0,0.0108987]
[1725254575293,0.90069986,57821.0,57820.0,0.0108987]
[1725254575526,0.84233527,57821.0,57820.0,0.0108987]
[1725254575752,0.92667376,57821.0,57820.0,0.0108987]
[1725254576438,1.03891403,57821.0,57820.0,0.0108987]
[1725254576650,0.67418765,57821.0,57820.0,0.0108987]
[1725254576891,1.25605365,57821.0,57820.0,0.0108987]
[1725254577124,1.61924265,57821.0,57820.0,0.0108987]
[1725254577379,1.53489967,57821.0,57820.0,0.0108987]
[1725254577606,1.29277367,57821.0,57820.0,0.0108987]
[1725254577844,1.37711665,57821.0,57820.0,0.0108987]
[1725254578723,0.87317155,57821.0,57820.0,0.0717987]
[1725254578944,0.79525065,57821.0,57820.0,0.0717987]
[1725254579238,0.79525065,57821.0,57820.0,0.0108987]
[1725254579676,0.80675065,57821.0,57820.0,0.0108987]
[1725254579917,0.88467155,57821.0,57820.0,0.0108987]
[1725254580140,0.99314955,57821.0,57820.0,0.0108987]
[1725254580383,0.99314791,57821.0,57820.0,0.0108987]
[1725254580613,1.15735465,57821.0,57820.0,0.0108987]
[1725254580833,1.07301167,57821.0,57820.0,0.0108987]
[1725254581073,0.78882641,57821.0,57820.0,0.0108987]
[1725254581311,0.79525065,57821.0,57820.0,0.0108987]
[1725254581551,1.03737665,57821.0,57820.0,0.0108987]
[1725254581765,0.87316939,57821.0,57820.0,0.0108987]
[1725254582026,1.18256765,57821.0,57820.0,0.0108987]
[1725254582234,1.19635458,57821.0,57820.0,0.0108987]
[1725254585042,1.0829116,57821.0,57820.0,0.0108987]
[1725254585279,0.89911051,57821.0,57820.0,0.0108987]
[1725254585484,0.89911051,57821.0,57820.0,0.1498987]
[1725254585485,0.84717802,57821.0,57820.0,0.1498987]
[1725254585757,0.84799602,57821.0,57820.0,0.1498987]
[1725254585968,0.79606865,57821.0,57820.0,0.1498987]
[1725254588277,0.10641067,57821.0,57820.0,0.1498987]
[1725254588520,0.10641067,57821.0,57820.0,0.1538987]
[1725254588734,0.22747367,57821.0,57820.0,0.1538987]
[1725254588959,0.10641067,57821.0,57820.0,0.1538987]
[1725254592724,0.22747367,57821.0,57820.0,0.1538987]
[1725254593386,0.27939697,57821.0,57820.0,0.1538987]
[1725254595892,0.71172567,57821.0,57820.0,0.0108987]
[1725254596334,0.78962328,57821.0,57820.0,0.0108987]
[1725254596562,0.78962804,57821.0,57820.0,0.0108987]
[1725254598387,0.87397102,57821.0,57820.0,0.0108987]
[1725254598603,0.79606865,57821.0,57820.0,0.0108987]
[1725254598826,0.55394265,57821.0,57820.0,0.0777987]
[1725254599262,0.60588444,57821.0,57820.0,0.0777987]
[1725254599484,0.55394265,57821.0,57820.0,0.0777987]
[1725254599703,0.60588945,57821.0,57820.0,0.1593987]
[1725254599919,0.60588945,57821.0,57820.0,0.17537857]
[1725254599920,0.22747367,57821.0,57820.0,0.17537857]
[1725254600577,0.22747367,57821.0,57820.0,0.1593987]
[1725254603352,0.10641067,57821.0,57820.0,0.1593987]
[1725254603496,0.19809901,57824.0,57823.0,0.004]
[1725254604975,0.19809901,57824.0,57823.0,0.007]
[1725254605611,0.221057,57824.0,57823.0,0.007]
[1725254605817,0.30539998,57824.0,57823.0,0.007]
[1725254606680,0.54751398,57824.0,57823.0,0.007]
[1725254606879,0.221057,57824.0,57823.0,0.16750987]
[1725254607728,0.221057,57824.0,57823.0,0.152]
[1725254609026,0.221057,57824.0,57823.0,0.157]
[1725254609228,0.221057,57824.0,57823.0,0.154]
[1725254609466,0.21797378,57824.0,57823.0,0.154]
[1725254609913,0.21797378,57824.0,57823.0,0.163]
[1725254610996,0.2238153,57824.0,57823.0,0.163]
[1725254611650,0.4659293,57824.0,57823.0,0.163]
[1725254612524,0.2238153,57824.0,57823.0,0.163]
[1725254612965,0.12771652,57824.0,57823.0,0.163]
[1725254615533,0.00665952,57824.0,57823.0,0.17938987]
[1725254616855,0.00665952,57824.0,57823.0,0.163]
[1725254634024,0.00665952,57824.0,57823.0,0.1638998]
[1725254638310,0.00665952,57824.0,57823.0,0.2849588]
[1725254638959,0.00665952,57824.0,57823.0,0.1638998]
[1725254639146,0.00665952,57824.0,57823.0,0.2849588]
[1725254640071,0.00665952,57824.0,57823.0,0.1638998]
[1725254641204,0.12771652,57824.0,57823.0,0.1638998]
[1725254644539,0.00665952,57824.0,57823.0,0.1638998]
[1725254646075,0.00665952,57824.0,57823.0,0.2849588]
[1725254652505,0.36983052,57824.0,57823.0,0.0798998]
[1725254654475,0.12771652,57824.0,57823.0,0.0188998]
[1725254655823,0.36983052,57824.0,57823.0,0.0188998]
[1725254656046,0.12771652,57824.0,57823.0,0.0188998]
[1725254656712,0.6962875,57824.0,57823.0,0.0188998]
[1725254656911,0.74828424,57824.0,57823.0,0.0188998]
[1725254657172,0.6962875,57824.0,57823.0,0.0188998]
[1725254657390,0.74829605,57824.0,57823.0,0.0188998]
[1725254658549,0.6962875,57824.0,57823.0,0.0188998]
[1725254658759,0.74830551,57824.0,57823.0,0.0188998]
[1725254659472,0.05867987,57824.0,57823.0,0.1571998]
[1725254659769,0.0086552,57824.0,57823.0,0.1571998]
[1725254660736,0.0086552,57824.0,57823.0,0.2782588]
[1725254660975,0.0086552,57824.0,57823.0,0.57305053]
[1725254661211,0.000818,57824.0,57823.0,0.57305053]
[1725254661451,0.00715298,57824.0,57823.0,0.57305053]
[1725254661925,0.00715298,57824.0,57823.0,0.81516853]
[1725254662364,0.000818,57824.0,57823.0,0.81516853]
[1725254662631,0.000818,57824.0,57823.0,0.81016853]
[1725254662886,0.000818,57824.0,57823.0,0.80116853]
[1725254663111,0.000818,57824.0,57823.0,0.82816853]
[1725254663565,0.000818,57824.0,57823.0,0.81516853]
[1725254663782,0.000818,57824.0,57823.0,0.82916853]
[1725254664449,0.000818,57824.0,57823.0,1.05728653]
[1725254664662,0.000818,57824.0,57823.0,1.07128653]
[1725254665959,0.000818,57824.0,57823.0,1.07328653]
[1725254666206,0.000818,57824.0,57823.0,1.07128653]
[1725254667085,0.02436491,57830.0,57829.0,0.363139]
[1725254667305,0.02436491,57830.0,57829.0,0.423639]
[1725254667585,0.01812196,57832.0,57831.0,0.121042]
[1725254667818,0.01812196,57832.0,57831.0,0.506426]
[1725254668934,0.01812196,57832.0,57831.0,0.515426]
[1725254669163,0.01812196,57832.0,57831.0,0.5911777]
[1725254670033,0.01812196,57832.0,57831.0,0.5961777]
[1725254670274,0.01893996,57832.0,57831.0,0.5961777]
[1725254670491,0.01893996,57832.0,57831.0,0.520426]
[1725254670970,0.01893996,57832.0,57831.0,0.76251]
[1725254671184,0.000818,57832.0,57831.0,0.76251]
[1725254672288,0.000818,57832.0,57831.0,0.75351]
[1725254672503,0.000818,57832.0,57831.0,0.76251]
[1725254672721,0.000818,57832.0,57831.0,0.8716051]
[1725254673154,0.000818,57832.0,57831.0,1.1276891]
[1725254673365,0.000818,57832.0,57831.0,1.1136891]
[1725254673818,0.000818,57832.0,57831.0,1.1276891]
[1725254674039,0.000818,57832.0,57831.0,1.21203208]
[1725254674510,0.000818,57832.0,57831.0,1.23503208]
[1725254677132,0.000818,57832.0,57831.0,1.1506891]
[1725254679629,0.000818,57832.0,57831.0,0.77651]
[1725254679854,0.000818,57832.0,57831.0,0.534426]
[1725254680778,0.000818,57832.0,57831.0,0.77651]
[1725254687391,0.000818,57832.0,57831.0,1.041594]
[1725254687824,0.000818,57832.0,57831.0,1.056594]
[1725254688085,0.000818,57832.0,57831.0,1.1708877]
[1725254688836,0.000818,57832.0,57831.0,1.1728877]
[1725254690312,0.000818,57832.0,57831.0,1.1658877]
[1725254690570,0.000818,57832.0,57831.0,1.1608877]
[1725254691281,0.000818,57832.0,57831.0,1.046594]
[1725254692888,0.000818,57832.0,57831.0,0.80451]
[1725254697025,0.363059,57842.0,57841.0,0.004]
[1725254697468,0.36842608,57842.0,57841.0,0.004]
[1725254697694,0.36842408,57842.0,57841.0,0.004]
[1725254698401,0.36842408,57842.0,57841.0,0.026]
[1725254701142,0.12638608,57842.0,57841.0,0.087]
[1725254702741,0.12638608,57842.0,57841.0,0.1155727]
[1725254702961,0.00536708,57842.0,57841.0,0.1155727]
[1725254703708,0.121015,57844.0,57841.0,0.1155727]
[1725254703932,0.00536718,57842.0,57841.0,0.1155727]
[1725254704155,0.121017,57843.0,57841.0,0.1155727]
[1725254704393,0.00644062,57842.0,57841.0,0.087]
[1725254704659,0.00644062,57842.0,57841.0,0.074]
[1725254704845,0.00644062,57842.0,57841.0,0.065]
[1725254705093,0.00644062,57842.0,57841.0,0.1093725]
[1725254705304,0.121015,57844.0,57843.0,0.004]
[1725254705742,0.363037,57846.0,57845.0,0.004]
[1725254706626,0.36842506,57846.0,57845.0,0.004]
[1725254706847,0.09635333,57846.0,57845.0,0.004]
[1725254707066,0.00538806,57846.0,57845.0,0.004]
[1725254707520,0.121009,57847.0,57845.0,0.0804018]
[1725254707709,0.00540287,57846.0,57845.0,0.0804018]
[1725254708206,0.00540287,57846.0,57845.0,0.0854018]
[1725254708419,0.00540287,57846.0,57845.0,0.0944018]
[1725254709541,0.12101,57846.0,57845.0,0.018]
[1725254709769,0.00540287,57846.0,57845.0,0.018]
[1725254709993,0.00540287,57846.0,57845.0,0.1595]
[1725254710452,0.121007,57848.0,57845.0,0.1595]
[1725254710671,0.00538195,57846.0,57845.0,0.1595]
[1725254710891,0.121007,57848.0,57845.0,0.1595]
[1725254711115,0.00538195,57846.0,57845.0,0.19784497]
[1725254711302,0.121007,57848.0,57845.0,0.21984497]
[1725254711535,0.00538436,57846.0,57845.0,0.21984497]
[1725254711763,0.121007,57848.0,57845.0,0.19784497]
[1725254711981,0.00538436,57846.0,57845.0,0.21184497]
[1725254712219,0.00538436,57846.0,57845.0,0.19784497]
[1725254712505,0.001,57850.0,57849.0,0.004]
[1725254712735,0.001,57850.0,57849.0,0.0691]
[1725254713440,0.001,57850.0,57849.0,0.190104]
[1725254714699,0.001,57850.0,57849.0,0.204104]
[1725254715803,0.001,57850.0,57849.0,0.217104]
[1725254716482,0.001,57850.0,57849.0,0.459113]
[1725254717254,0.001,57850.0,57849.0,0.5424201]
[1725254717458,0.001,57850.0,57849.0,0.5284201]
[1725254717664,0.001,57850.0,57849.0,0.5154201]
[1725254717891,0.001,57850.0,57849.0,0.5294201]
[1725254718097,0.001,57850.0,57849.0,0.5284201]
[1725254718294,0.001,57850.0,57849.0,0.445113]
[1725254718450,0.001,57850.0,57849.0,0.432113]
[1725254718877,0.001,57850.0,57849.0,0.536013]
[1725254719517,0.001,57850.0,57849.0,0.778022]
[1725254720218,0.001,57850.0,57849.0,0.508013]
[1725254720430,0.001817,57850.0,57849.0,0.522013]
[1725254720658,0.001817,57850.0,57849.0,0.536013]
[1725254720882,0.001817,57850.0,57849.0,0.6139848]
[1725254721372,0.001817,57850.0,57849.0,0.522013]
[1725254721373,0.00914155,57850.0,57849.0,0.522013]
[1725254721603,0.00914155,57850.0,57849.0,0.536013]
[1725254722534,0.00914155,57850.0,57849.0,0.541013]
[1725254722761,0.001817,57850.0,57849.0,0.536013]
[1725254722983,0.001817,57850.0,57849.0,0.3859758]
[1725254723243,0.001817,57850.0,57849.0,0.299004]
[1725254725199,0.001817,57850.0,57849.0,0.541013]
[1725254728201,0.001817,57850.0,57849.0,0.783022]
[1725254728931,0.001817,57850.0,57849.0,1.38638298]
[1725254729165,0.001817,57850.0,57849.0,1.14437398]
[1725254729382,0.001817,57850.0,57849.0,1.26404588]
[1725254729589,0.001817,57850.0,57849.0,1.25004588]
[1725254730021,0.32624298,57875.0,57874.0,0.004]
[1725254730239,0.68909298,57875.0,57874.0,0.004]
[1725254730453,0.69763712,57875.0,57874.0,0.004]
[1725254731562,0.69763712,57875.0,57874.0,0.009]
[1725254732219,0.79763712,57875.0,57874.0,0.009]
[1725254733163,0.79845512,57875.0,57874.0,0.009]
[1725254733385,0.79845512,57875.0,57874.0,0.011]
[1725254735478,0.55655512,57875.0,57874.0,0.011]
[1725254735921,0.79845512,57875.0,57874.0,0.011]
[1725254736147,0.55655512,57875.0,57874.0,0.011]
[1725254736403,0.79845512,57875.0,57874.0,0.011]
[1725254740936,0.000818,57875.0,57874.0,0.1545]
[1725254741167,0.000818,57875.0,57874.0,0.2993363]
[1725254741399,0.000818,57875.0,57874.0,0.1783843]
[1725254741916,0.000818,57875.0,57874.0,0.2993363]
[1725254742425,0.000818,57875.0,57874.0,0.270452]
[1725254742671,0.000818,57875.0,57874.0,0.268452]
[1725254742957,0.000818,57875.0,57874.0,0.270452]
[1725254743981,0.000818,57875.0,57874.0,0.280452]
[1725254744207,0.000818,57875.0,57874.0,0.282452]
[1725254745174,0.000818,57875.0,57874.0,0.296452]
[1725254746628,0.000818,57875.0,57874.0,0.1755]
[1725254748969,0.000818,57875.0,57874.0,0.538356]
[1725254749213,0.000818,57875.0,57874.0,0.43472155]
[1725254749740,0.000818,57875.0,57874.0,0.296452]
[1725254750652,0.000818,57875.0,57874.0,0.282452]
[1725254750878,0.000818,57875.0,57874.0,0.268452]
[1725254751105,0.000818,57875.0,57874.0,0.282452]
[1725254751837,0.000818,57875.0,57874.0,0.296452]
[1725254752297,0.241878,57881.0,57874.0,0.33637847]
[1725254752526,0.120943,57879.0,57875.0,0.064]
[1725254752978,0.120943,57879.0,57874.0,0.28987847]
[1725254752979,0.44715498,57881.0,57880.0,0.004]
[1725254753198,0.68902998,57881.0,57880.0,0.004]
[1725254753669,0.70662998,57881.0,57880.0,0.004]
[1725254754648,0.80662998,57881.0,57880.0,0.004]
[1725254755096,0.80662998,57881.0,57880.0,0.017]
[1725254755350,0.80662998,57881.0,57880.0,0.026]
[1725254755853,0.78902998,57881.0,57880.0,0.026]
[1725254756116,0.704687,57881.0,57880.0,0.026]
[1725254756333,0.704687,57881.0,57872.0,0.0008987]
[1725254756334,0.362863,57873.0,57872.0,0.0008987]
[1725254756580,0.70671498,57873.0,57872.0,0.0008987]
[1725254756801,1.63048998,57873.0,57872.0,0.0008987]
[1725254757031,1.65761119,57873.0,57872.0,0.0008987]
[1725254757283,1.82616283,57873.0,57872.0,0.0008987]
[1725254757539,1.65761119,57873.0,57872.0,0.0008987]
[1725254757790,1.70935419,57873.0,57872.0,0.0098987]
[1725254758025,1.95126319,57873.0,57872.0,0.0008987]
[1725254758305,1.95128436,57873.0,57872.0,0.0098987]
[1725254758554,1.89952019,57873.0,57872.0,0.0098987]
[1725254758794,1.91345757,57873.0,57872.0,0.0098987]
[1725254759502,2.08200921,57873.0,57872.0,0.0098987]
[1725254759734,2.08400921,57873.0,57872.0,0.0098987]
[1725254759965,1.67154857,57873.0,57872.0,0.0138987]
[1725254760676,1.91345757,57873.0,57872.0,0.0138987]
[1725254761376,1.91545757,57873.0,57872.0,0.0138987]
[1725254761646,2.08400921,57873.0,57872.0,0.0138987]
[1725254762333,2.16160783,57873.0,57872.0,0.0138987]
[1725254762575,2.24649164,57873.0,57872.0,0.0138987]
[1725254762996,2.08400921,57873.0,57872.0,0.0138987]
[1725254763702,2.18747403,57873.0,57872.0,0.0138987]
[1725254764151,2.18756948,57873.0,57872.0,0.0138987]
[1725254765509,2.08400921,57873.0,57872.0,0.0138987]
[1725254766154,2.21345955,57873.0,57872.0,0.0138987]
[1725254767038,2.08400921,57873.0,57872.0,0.0138987]
[1725254767269,2.21346175,57873.0,57872.0,0.0138987]
[1725254767711,2.08400921,57873.0,57872.0,0.0138987]
[1725254769923,1.91545757,57873.0,57872.0,0.0138987]
[1725254770142,1.91345757,57873.0,57872.0,0.0138987]
[1725254770362,2.04290329,57873.0,57872.0,0.0138987]
[1725254772372,2.04490329,57873.0,57872.0,0.0138987]
[1725254773441,2.0448935,57873.0,57872.0,0.0138987]
[1725254773692,2.0272935,57873.0,57872.0,0.0138987]
[1725254774138,1.89785757,57873.0,57872.0,0.0138987]
[1725254774819,1.4454275,57873.0,57872.0,0.0138987]
[1725254775028,2.0272935,57873.0,57872.0,0.0138987]
[1725254775681,1.89785757,57873.0,57872.0,0.0138987]
[1725254776133,2.08635761,57873.0,57872.0,0.0138987]
[1725254777087,2.0272836,57873.0,57872.0,0.0138987]
[1725254777302,1.89785757,57873.0,57872.0,0.0138987]
[1725254778667,2.00137513,57873.0,57872.0,0.0138987]
[1725254778886,1.89785757,57873.0,57872.0,0.0138987]
[1725254779139,2.00137467,57873.0,57872.0,0.0138987]
[1725254779609,2.00137057,57873.0,57872.0,0.0138987]
[1725254779827,1.89785757,57873.0,57872.0,0.0138987]
[1725254780852,2.19583524,57873.0,57872.0,0.0138987]
[1725254781532,2.06640921,57873.0,57872.0,0.0138987]
[1725254781901,1.89785757,57873.0,57872.0,0.0138987]
[1725254782676,2.00135633,57873.0,57872.0,0.0138987]
[1725254784512,1.89785757,57873.0,57872.0,0.0138987]
[1725254784881,2.00135633,57873.0,57872.0,0.0138987]
[1725254786190,1.99935633,57873.0,57872.0,0.0138987]
[1725254786797,1.89585757,57873.0,57872.0,0.0138987]
[1725254787395,1.99935633,57873.0,57872.0,0.0138987]
[1725254788057,1.89585757,57873.0,57872.0,0.0138987]
[1725254788262,1.99935633,57873.0,57872.0,0.0138987]
[1725254789757,1.37769451,57873.0,57872.0,0.0793987]
[1725254791701,1.56755895,57873.0,57872.0,0.0793987]
[1725254791897,1.30005419,57873.0,57872.0,0.0793987]
[1725254792060,1.40355295,57873.0,57872.0,0.0793987]
[1725254792272,1.30005419,57873.0,57872.0,0.0793987]
[1725254793465,1.46406019,57873.0,57872.0,0.0793987]
[1725254794247,1.56755895,57873.0,57872.0,0.0793987]
[1725254794453,1.40355295,57873.0,57872.0,0.0793987]
[1725254795743,1.30005419,57873.0,57872.0,0.0793987]
[1725254796609,1.42966248,57873.0,57872.0,0.0793987]
[1725254797024,1.30005419,57873.0,57872.0,0.0793987]
[1725254797282,1.55060219,57873.0,57872.0,0.0793987]
[1725254797497,1.46381119,57873.0,57872.0,0.0793987]
[1725254798143,1.30005419,57873.0,57872.0,0.0793987]
[1725254798555,1.05814519,57873.0,57872.0,0.0793987]
[1725254800134,1.22155519,57873.0,57872.0,0.0793987]
[1725254800569,1.05814519,57873.0,57872.0,0.0793987]
[1725254801053,1.22155519,57873.0,57872.0,0.0793987]
[1725254801754,1.37745541,57873.0,57872.0,0.0793987]
[1725254802414,1.21404541,57873.0,57872.0,0.0793987]
[1725254802638,1.24144619,57873.0,57872.0,0.0793987]
[1725254802887,1.22155519,57873.0,57872.0,0.0793987]
[1725254803109,1.37747061,57873.0,57872.0,0.0793987]
[1725254803986,1.22155519,57873.0,57872.0,0.0793987]
[1725254804237,1.23580774,57873.0,57872.0,0.0793987]
[1725254804879,1.36119986,57873.0,57872.0,0.0138987]
[1725254805982,1.23580774,57873.0,57872.0,0.0138987]
[1725254807174,1.47771674,57873.0,57872.0,0.0138987]
[1725254810061,1.13721221,57873.0,57872.0,0.1508987]
[1725254810286,1.22155519,57873.0,57872.0,0.1508987]
[1725254810510,1.2140581,57873.0,57872.0,0.1508987]
[1725254810719,1.4486481,57873.0,57872.0,0.1508987]
[1725254811162,1.3792481,57873.0,57872.0,0.1508987]
[1725254811591,1.29490512,57873.0,57872.0,0.1508987]
[1725254811806,1.3792481,57873.0,57872.0,0.1508987]
[1725254812198,1.22333519,57873.0,57872.0,0.1508987]
[1725254812409,1.37924261,57873.0,57872.0,0.1508987]
[1725254813472,1.22333519,57873.0,57872.0,0.1508987]
[1725254813684,1.37924116,57873.0,57872.0,0.1508987]
[1725254813895,1.21405116,57873.0,57872.0,0.1508987]
[1725254815152,1.05814519,57873.0,57872.0,0.1508987]
[1725254815420,1.12970951,57873.0,57872.0,0.1508987]
[1725254815610,1.21405249,57873.0,57872.0,0.1508987]
[1725254816470,1.05814519,57873.0,57872.0,0.1508987]
[1725254816696,1.21405393,57873.0,57872.0,0.1508987]
[1725254817800,0.97214493,57873.0,57872.0,0.1508987]
[1725254818030,0.81623619,57873.0,57872.0,0.1548987]
[1725254819413,0.83054327,57873.0,57872.0,0.1508987]
[1725254819647,0.83054327,57873.0,57872.0,0.1548987]
[1725254820519,0.83054327,57873.0,57872.0,0.1508987]
[1725254820973,0.83028653,57873.0,57872.0,0.1508987]
[1725254821227,0.83028653,57873.0,57872.0,0.1548987]
[1725254822324,0.83028653,57873.0,57872.0,0.1508987]
[1725254822555,0.83028653,57873.0,57872.0,0.1548987]
[1725254822760,0.83028653,57873.0,57872.0,0.1508987]
[1725254824802,1.65406153,57873.0,57872.0,0.1508987]
[1725254825013,1.65406153,57873.0,57872.0,0.0749987]
[1725254825704,1.21988845,57873.0,57872.0,0.0749987]
[1725254825919,1.05788845,57873.0,57872.0,0.0749987]
[1725254827306,1.05788845,57873.0,57872.0,0.1516987]
[1725254827757,1.05788845,57873.0,57872.0,0.1466987]
[1725254828631,1.05788845,57873.0,57872.0,0.1475974]
[1725254829284,0.81597945,57873.0,57872.0,0.1475974]
[1725254830850,0.81572143,57873.0,57872.0,0.1475974]
[1725254831731,1.05763043,57873.0,57872.0,0.1475974]
[1725254831950,1.63949643,57873.0,57872.0,0.0708974]
[1725254832177,1.65394132,57873.0,57872.0,0.0708974]
[1725254832397,1.65394132,57873.0,57872.0,0.0097974]
[1725254832614,1.82449296,57873.0,57872.0,0.0097974]
[1725254832826,1.9784017,57873.0,57872.0,0.0097974]
[1725254833266,1.80984957,57873.0,57872.0,0.0097974]
[1725254833702,1.39402683,57873.0,57872.0,0.0097974]
[1725254834161,1.42282424,57873.0,57872.0,0.0097974]
[1725254834895,1.66473324,57873.0,57872.0,0.0097974]
[1725254837722,1.06842235,57873.0,57872.0,0.0097974]
[1725254837922,1.06842235,57873.0,57872.0,0.0732974]
[1725254838143,1.06842235,57873.0,57872.0,0.1533974]
[1725254839009,1.32932335,57873.0,57872.0,0.1533974]
[1725254839223,1.31632335,57873.0,57872.0,0.1533974]
[1725254840906,1.31606545,57873.0,57872.0,0.1533974]
[1725254841588,1.31688245,57873.0,57872.0,0.1533974]
[1725254843908,1.31688245,57873.0,57872.0,0.0732974]
[1725254844161,1.63069683,57873.0,57872.0,0.0732974]
[1725254845036,1.64514273,57873.0,57872.0,0.0732974]
[1725254846620,1.88705173,57873.0,57872.0,0.0097974]
[1725254847024,1.73112764,57873.0,57872.0,0.0097974]
[1725254848480,1.48921864,57873.0,57872.0,0.0097974]
[1725254849055,1.33132835,57873.0,57872.0,0.0097974]
[1725254849286,1.48725276,57873.0,57872.0,0.0097974]
[1725254850600,1.23935176,57873.0,57872.0,0.0740974]
[1725254850886,1.08317015,57873.0,57872.0,0.0740974]
[1725254851676,0.79079723,57873.0,57872.0,0.0740974]
[1725254851881,0.91175123,57873.0,57872.0,0.0740974]
[1725254852499,0.93887197,57873.0,57872.0,0.0740974]
[1725254853529,1.19151397,57873.0,57872.0,0.0740974]
[1725254853982,1.29151397,57873.0,57872.0,0.0740974]
[1725254854833,1.44666751,57873.0,57872.0,0.0740974]
[1725254856923,1.44666751,57873.0,57872.0,0.0097974]
[1725254857121,1.19402551,57873.0,57872.0,0.0097974]
[1725254857334,1.77589151,57873.0,57872.0,0.0097974]
[1725254859003,1.77789151,57873.0,57872.0,0.0097974]
[1725254859417,1.77589151,57873.0,57872.0,0.0097974]
[1725254860549,2.01780051,57873.0,57872.0,0.0097974]
[1725254860750,1.77589151,57873.0,57872.0,0.0097974]
[1725254860967,1.77537606,57873.0,57872.0,0.0097974]
[1725254861384,1.62022252,57873.0,57872.0,0.0097974]
[1725254861850,1.86213152,57873.0,57872.0,0.0097974]
[1725254862064,1.62022252,57873.0,57872.0,0.0097974]
[1725254863759,1.86213152,57873.0,57872.0,0.0097974]
[1725254864183,1.86413152,57873.0,57872.0,0.0097974]
[1725254864840,1.86213152,57873.0,57872.0,0.0097974]
[1725254865044,1.62022252,57873.0,57872.0,0.0701974]
[1725254865472,1.56881152,57873.0,57872.0,0.0701974]
[1725254865710,1.48446854,57873.0,57872.0,0.0701974]
[1725254865927,1.56881152,57873.0,57872.0,0.0701974]
[1725254866362,1.56881152,57873.0,57872.0,0.0651974]
[1725254867051,1.23262054,57873.0,57872.0,0.0651974]
[1725254867261,1.42655458,57873.0,57872.0,0.0651974]
[1725254867698,1.27062652,57873.0,57872.0,0.0651974]
[1725254868334,1.04100503,57873.0,57872.0,0.0651974]
[1725254868771,1.28291403,57873.0,57872.0,0.0651974]
[1725254869175,1.05064403,57873.0,57872.0,0.0651974]
[1725254869387,1.63251003,57873.0,57872.0,0.0651974]
[1725254872895,1.63251003,57873.0,57872.0,0.0656974]
[1725254873779,1.57706403,57873.0,57872.0,0.0656974]
[1725254875547,1.74561567,57873.0,57872.0,0.0656974]
[1725254882480,1.98752467,57873.0,57872.0,0.0656974]
[1725254883103,1.46110467,57873.0,57872.0,0.0656974]
[1725254883513,2.04297067,57873.0,57872.0,0.0656974]
[1725254885409,1.55766503,57873.0,57872.0,0.0656974]
[1725254885620,1.44842903,57873.0,57872.0,0.0656974]
[1725254885899,1.43340203,57873.0,57872.0,0.0656974]
[1725254886089,1.43340203,57873.0,57872.0,0.1427974]
[1725254886845,1.21352903,57873.0,57872.0,0.1427974]
[1725254887234,1.36949071,57873.0,57872.0,0.1427974]
[1725254887470,1.20660571,57873.0,57872.0,0.1427974]
[1725254888033,1.05064403,57873.0,57872.0,0.1427974]
[1725254888243,1.63251003,57873.0,57872.0,0.1427974]
[1725254891283,1.54816705,57873.0,57872.0,0.1427974]
[1725254891578,1.54190503,57873.0,57872.0,0.1427974]
[1725254891751,1.50003703,57873.0,57872.0,0.1427974]
[1725254895976,1.29701603,57873.0,57872.0,0.1427974]
[1725254896243,1.05064403,57873.0,57872.0,0.1427974]
[1725254896448,0.80873503,57873.0,57872.0,0.1427974]
[1725254896876,1.05064403,57873.0,57872.0,0.1427974]
[1725254897076,0.80873503,57873.0,57872.0,0.1427974]
[1725254897289,0.80873503,57873.0,57872.0,0.1467974]
[1725254898171,0.80873503,57873.0,57872.0,0.16147714]
[1725254898172,0.38248305,57873.0,57872.0,0.16147714]